bitfinex-derivatives/quotes_SOLF0:USTF0_20241212
["timestamp","ask_amount","ask_price","bid_price","bid_amount"]
[1733968969426,2.06,226.65,226.57,6.58095527]
[1733968969627,6.58095527,226.65,226.59,6.58095527]
[1733968970624,1.3397,226.69,226.61,6.58095527]
[1733968970821,9.98065527,226.69,226.63,6.58095527]
[1733968971126,4.264,226.69,226.63,8.78545527]
[1733968971630,2.204,226.69,226.63,8.78545527]
[1733968971827,2.204,226.69,226.64,2.2044]
[1733968972730,2.204,226.69,226.63,8.78545527]
[1733968978673,8.78485527,226.7,226.65,6.58095527]
[1733968979548,4.2637,226.72,226.67,2.2041]
[1733968980341,4.2637,226.72,226.65,6.58095527]
[1733968980535,4.2637,226.72,226.66,2.2042]
[1733968980536,2.2038,226.71,226.66,2.2042]
[1733968982061,6.58095527,226.73,226.67,2.2041]
[1733968982301,6.58095527,226.73,226.64,2.06]
[1733968982468,6.58095527,226.73,226.64,8.64095527]
[1733968982836,2.2038,226.71,226.66,2.2042]
[1733968983039,2.2038,226.71,226.66,8.78515527]
[1733968985051,6.58095527,226.75,226.68,6.58095527]
[1733968985944,2.2036,226.73,226.68,8.78495527]
[1733968987037,2.2034,226.75,226.64,2.06]
[1733968987238,1.463,226.83,226.72,6.58095527]
[1733968987438,6.58095527,226.8,226.72,6.58095527]
[1733968987645,2.2031,226.78,226.72,8.78465527]
[1733968987845,2.06,226.82,226.72,6.58095527]
[1733968988035,6.58095527,226.8,226.74,8.78445527]
[1733968988255,8.78395527,226.8,226.74,8.78445527]
[1733968988742,2.06,226.85,226.74,6.58095527]
[1733968988942,6.58095527,226.82,226.74,6.58095527]
[1733968989140,6.58095527,226.82,226.73,1.3457]
[1733968989141,8.41591313,226.81,226.76,6.58095527]
[1733968989442,2.2028,226.81,226.76,6.58095527]
[1733968990743,6.58095527,226.82,226.76,6.58095527]
[1733968990744,2.2029,226.8,226.76,6.58095527]
[1733968995644,2.2029,226.8,226.78,6.58095527]
[1733968996040,2.2028,226.81,226.78,6.58095527]
[1733968996550,4.4023,226.98,226.8,6.58095527]
[1733968996745,6.58095527,226.89,226.82,6.58095527]
[1733968996946,1.4601,226.97,226.82,6.58095527]
[1733968997142,2.2024,226.86,226.82,6.58095527]
[1733968998343,2.2024,226.85,226.82,6.58095527]
[1733968998546,6.58095527,226.86,226.8,6.58095527]
[1733968999746,2.2028,226.82,226.8,6.58095527]
[1733969001340,6.58095527,226.86,226.8,6.58095527]
[1733969001594,2.2028,226.81,226.78,6.58095527]
[1733969002453,2.2029,226.8,226.78,6.58095527]
[1733969003340,2.2029,226.8,226.75,2.2034]
[1733969003547,2.2029,226.8,226.78,6.58095527]
[1733969003745,2.2028,226.82,226.78,6.58095527]
[1733969004248,6.58095527,226.84,226.78,6.58095527]
[1733969004444,2.203,226.8,226.74,7.37980212]
[1733969004649,2.203,226.8,226.77,6.58095527]
[1733969005252,2.2028,226.82,226.77,6.58095527]
[1733969005653,2.2028,226.82,226.79,6.58095527]
[1733969007147,8.64095527,226.88,226.81,6.58095527]
[1733969007721,2.2024,226.86,226.81,6.58095527]
[1733969008753,8.64095527,226.88,226.81,6.58095527]
[1733969009049,2.2024,226.85,226.81,6.58095527]
[1733969009752,2.2025,226.84,226.81,6.58095527]
[1733969011249,3.5201,226.89,226.78,6.58095527]
[1733969011250,6.58095527,226.85,226.78,6.58095527]
[1733969011851,8.78325527,226.87,226.8,6.58095527]
[1733969012053,8.4037455,226.86,226.8,6.58095527]
[1733969012355,6.58095527,226.87,226.8,6.58095527]
[1733969012547,8.40658349,226.86,226.8,6.58095527]
[1733969012850,8.40658349,226.85,226.8,6.58095527]
[1733969013051,6.58095527,226.87,226.8,6.58095527]
[1733969013252,8.4062542,226.86,226.8,6.58095527]
[1733969013546,8.4062542,226.85,226.8,6.58095527]
[1733969013753,2.2026,226.83,226.8,6.58095527]
[1733969014352,2.2027,226.82,226.78,6.58095527]
[1733969014545,6.58095527,226.83,226.76,6.58095527]
[1733969014746,6.58095527,226.81,226.74,6.58095527]
[1733969014948,2.2033,226.76,226.74,6.58095527]
[1733969015152,6.58095527,226.81,226.74,6.58095527]
[1733969015556,2.2032,226.77,226.74,6.58095527]
[1733969016555,6.58095527,226.81,226.73,1.3457]
[1733969016756,8.42357305,226.8,226.73,1.3457]
[1733969016953,6.58095527,226.81,226.73,6.58095527]
[1733969017152,8.42391203,226.8,226.73,6.58095527]
[1733969017376,2.2035,226.74,226.73,6.58095527]
[1733969018455,2.2034,226.76,226.73,6.58095527]
[1733969018756,8.64095527,226.79,226.73,6.58095527]
[1733969019755,2.2033,226.76,226.75,6.58095527]
[1733969020966,2.06,226.79,226.75,6.58095527]
[1733969021157,2.2029,226.8,226.77,6.58095527]
[1733969021949,2.2028,226.81,226.79,6.58095527]
[1733969023350,2.06,226.86,226.79,6.58095527]
[1733969023959,8.64095527,226.87,226.81,6.58095527]
[1733969024350,6.58095527,226.85,226.79,6.58095527]
[1733969025557,2.2026,226.83,226.79,6.58095527]
[1733969025960,8.44158196,226.82,226.79,6.58095527]
[1733969026155,6.58095527,226.85,226.79,6.58095527]
[1733969026156,8.44158196,226.81,226.79,6.58095527]
[1733969026458,6.58095527,226.85,226.79,6.58095527]
[1733969026459,2.2028,226.82,226.79,6.58095527]
[1733969026656,8.44384355,226.81,226.79,6.58095527]
[1733969026985,2.2028,226.82,226.79,6.58095527]
[1733969027154,8.44383314,226.81,226.79,6.58095527]
[1733969027353,2.2028,226.82,226.79,6.58095527]
[1733969027551,8.4464172,226.81,226.79,6.58095527]
[1733969027854,6.58095527,226.85,226.79,6.58095527]
[1733969028068,2.2028,226.81,226.79,6.58095527]
[1733969028259,8.44881569,226.8,226.79,6.58095527]
[1733969028953,2.06,226.87,226.79,6.58095527]
[1733969029156,19.72318134,226.86,226.81,6.58095527]
[1733969029459,19.72318134,226.85,226.81,6.58095527]
[1733969029652,19.72318134,226.84,226.81,6.58095527]
[1733969029850,8.44692359,226.84,226.81,8.78375527]
[1733969030260,2.2024,226.86,226.81,8.78375527]
[1733969030462,2.2024,226.86,226.83,6.58095527]
[1733969031260,19.73124956,226.85,226.83,6.58095527]
[1733969031461,19.73124956,226.84,226.83,6.58095527]
[1733969031660,8.45037426,226.84,226.83,8.78355527]
[1733969031863,10.65227426,226.9,226.83,6.58095527]
[1733969032063,19.73563578,226.89,226.86,6.58095527]
[1733969032262,19.73563578,226.88,226.86,6.58095527]
[1733969032459,19.73563578,226.87,226.86,6.58095527]
[1733969032763,8.45037426,226.87,226.86,6.58095527]
[1733969032963,8.45037426,226.9,226.82,2.8598]
[1733969033161,19.73497566,226.89,226.82,2.8598]
[1733969033365,8.45037426,226.88,226.83,8.78355527]
[1733969033559,8.45037426,226.87,226.83,8.78355527]
[1733969033860,8.45037426,226.86,226.83,8.78355527]
[1733969034064,2.2021,226.88,226.83,8.78355527]
[1733969036071,6.58095527,226.91,226.83,6.58095527]
[1733969036266,2.2022,226.87,226.83,6.58095527]
[1733969036672,6.58095527,226.87,226.7,1.3415]
[1733969036972,6.58095527,226.87,226.8,6.58095527]
[1733969037378,2.2024,226.85,226.8,6.58095527]
[1733969037677,6.58095527,226.87,226.8,6.58095527]
[1733969038076,2.2027,226.82,226.78,6.58095527]
[1733969041778,8.43893612,226.81,226.78,6.58095527]
[1733969042084,2.2027,226.82,226.78,6.58095527]
[1733969042286,8.4385662,226.81,226.78,6.58095527]
[1733969042483,2.2027,226.82,226.78,6.58095527]
[1733969043283,6.58095527,226.85,226.78,6.58095527]
[1733969043482,21.75841823,226.84,226.78,6.58095527]
[1733969043692,19.69841823,226.83,226.78,6.58095527]
[1733969043877,2.2028,226.81,226.78,6.58095527]
[1733969044280,8.64095527,226.84,226.78,6.58095527]
[1733969044487,2.2031,226.78,226.76,6.58095527]
[1733969045778,2.2032,226.77,226.71,2.7828]
[1733969045984,2.2032,226.77,226.73,6.58095527]
[1733969047791,2.2033,226.76,226.73,6.58095527]
[1733969048283,2.2032,226.78,226.73,6.58095527]
[1733969048485,2.06,226.79,226.73,6.58095527]
[1733969048884,8.43473694,226.78,226.73,6.58095527]
[1733969049080,2.06,226.79,226.73,6.58095527]
[1733969049582,8.64095527,226.82,226.75,6.58095527]
[1733969050000,8.64095527,226.82,226.77,6.58095527]
[1733969051696,8.64095527,226.82,226.75,6.58095527]
[1733969051989,8.64095527,226.82,226.73,2.2035]
[1733969052285,6.58095527,226.8,226.72,6.58095527]
[1733969053436,2.2031,226.79,226.74,6.58095527]
[1733969053887,2.2025,226.84,226.78,6.58095527]
[1733969054095,2.2025,226.84,226.71,2.7828]
[1733969054096,2.2025,226.84,226.81,6.58095527]
[1733969054493,2.2024,226.86,226.83,6.58095527]
[1733969056499,2.06,226.9,226.85,6.58095527]
[1733969057097,4.262,226.9,226.85,6.58095527]
[1733969057696,2.202,226.9,226.85,6.58095527]
[1733969063691,8.4257026,226.89,226.85,6.58095527]
[1733969063898,8.4257026,226.88,226.87,6.58095527]
[1733969064200,2.06,226.95,226.87,6.58095527]
[1733969064393,2.2016,226.93,226.89,6.58095527]
[1733969064595,2.06,226.95,226.89,6.58095527]
[1733969064596,19.67362923,226.92,226.89,6.58095527]
[1733969064789,8.42567201,226.91,226.89,6.58095527]
[1733969064989,8.42567201,226.9,226.89,6.58095527]
[1733969065202,8.42567201,226.94,226.89,6.58095527]
[1733969065391,2.06,226.95,226.89,6.58095527]
[1733969065392,19.67205521,226.93,226.89,6.58095527]
[1733969065699,8.42567201,226.92,226.89,6.58095527]
[1733969065899,8.42567201,226.91,226.89,6.58095527]
[1733969066091,8.42567201,226.9,226.89,6.58095527]
[1733969067196,2.2016,226.94,226.89,6.58095527]
[1733969067500,19.66157369,226.93,226.89,6.58095527]
[1733969067796,8.42050888,226.92,226.89,6.58095527]
[1733969067993,8.42050888,226.91,226.89,6.58095527]
[1733969068296,7.40358258,226.98,226.9,2.2019]
[1733969068498,19.65837637,226.97,226.92,6.58095527]
[1733969068796,19.65837637,226.96,226.92,6.58095527]
[1733969069095,2.06,226.98,226.92,6.58095527]
[1733969069096,19.65837637,226.95,226.92,6.58095527]
[1733969069301,8.41913879,226.94,226.92,6.58095527]
[1733969069498,8.41913879,226.93,226.92,6.58095527]
[1733969069889,2.2014,226.96,226.92,6.58095527]
[1733969070294,8.41670021,226.95,226.92,6.58095527]
[1733969070607,2.2012,226.98,226.94,6.58095527]
[1733969070798,8.41389867,226.97,226.94,6.58095527]
[1733969070989,8.41389867,226.96,226.94,6.58095527]
[1733969071191,2.2012,226.98,226.94,6.58095527]
[1733969071390,8.41110117,226.97,226.94,6.58095527]
[1733969071701,6.58095527,226.98,226.86,2.06]
[1733969072096,8.64095527,227.0,226.92,6.58095527]
[1733969072590,2.2013,226.96,226.92,6.58095527]
[1733969072793,8.64095527,227.0,226.94,6.58095527]
[1733969073200,2.06,227.0,226.94,6.58095527]
[1733969073595,2.2012,226.98,226.94,6.58095527]
[1733969074002,2.06,227.01,226.94,6.58095527]
[1733969074301,2.201,226.99,226.94,6.58095527]
[1733969074501,8.64095527,227.01,226.91,2.06]
[1733969074701,8.64095527,227.01,226.93,6.58095527]
[1733969075610,2.2012,226.98,226.93,8.78255527]
[1733969075900,8.64095527,227.01,226.93,6.58095527]
[1733969076093,8.64095527,227.01,226.95,6.58095527]
[1733969076298,2.201,227.0,226.95,8.78235527]
[1733969076803,2.201,227.0,226.95,6.58095527]
[1733969077298,2.201,226.99,226.94,2.2014]
[1733969077507,6.58095527,226.99,226.92,6.58095527]
[1733969077703,6.58095527,226.97,226.9,6.58095527]
[1733969078002,2.2015,226.95,226.9,6.58095527]
[1733969078205,6.58095527,226.97,226.89,4.2619]
[1733969078405,6.58095527,226.97,226.91,6.58095527]
[1733969078800,6.58095527,226.99,226.93,6.58095527]
[1733969079101,8.39525867,226.98,226.93,6.58095527]
[1733969079300,2.2014,226.96,226.93,6.58095527]
[1733969079500,8.64095527,227.01,226.93,6.58095527]
[1733969079699,8.39407355,227.0,226.93,6.58095527]
[1733969079896,8.39407355,226.99,226.89,2.06]
[1733969080124,2.2012,226.98,226.96,6.58095527]
[1733969080309,10.02705527,227.04,226.96,6.58095527]
[1733969080528,19.60443359,227.03,226.96,6.58095527]
[1733969080811,10.59681818,227.02,226.98,6.58095527]
[1733969081003,8.39601818,227.01,226.98,6.58095527]
[1733969081204,7.96705527,227.04,226.98,6.58095527]
[1733969081404,8.39864959,227.03,226.98,6.58095527]
[1733969081599,8.39864959,227.02,226.98,6.58095527]
[1733969081902,7.96705527,227.04,226.98,6.58095527]
[1733969082111,8.39988242,227.03,226.98,6.58095527]
[1733969082311,8.39988242,227.02,226.98,6.58095527]
[1733969082505,6.58095527,227.04,226.98,6.58095527]
[1733969082700,2.2008,227.02,226.98,6.58095527]
[1733969083208,6.58095527,227.04,226.98,6.58095527]
[1733969083418,10.59719535,227.03,226.98,6.58095527]
[1733969083611,2.2007,227.03,226.98,6.58095527]
[1733969084706,2.201,227.0,226.94,4.2615]
[1733969085011,2.201,227.0,226.96,6.58095527]
[1733969085705,8.78195527,227.0,226.94,2.2015]
[1733969085908,2.2011,226.99,226.94,6.58095527]
[1733969086614,6.58095527,226.98,226.82,5.19553161]
[1733969086831,6.58095527,226.96,226.89,6.58095527]
[1733969087009,6.58095527,226.94,226.89,6.58095527]
[1733969087311,2.2017,226.93,226.89,6.58095527]
[1733969088108,6.58095527,226.94,226.83,4.2695]
[1733969088312,6.58095527,226.94,226.87,6.58095527]
[1733969089814,2.2018,226.91,226.87,6.58095527]
[1733969090426,6.58095527,226.94,226.87,6.58095527]
[1733969090913,2.2019,226.9,226.87,6.58095527]
[1733969092209,2.2019,226.91,226.87,6.58095527]
[1733969094315,2.2019,226.91,226.89,6.58095527]
[1733969096408,2.2019,226.9,226.87,6.58095527]
[1733969098221,2.2018,226.92,226.89,6.58095527]
[1733969099223,7.32737784,226.95,226.89,6.58095527]
[1733969099420,2.2019,226.91,226.89,6.58095527]
[1733969101122,8.4260978,226.9,226.89,6.58095527]
[1733969107926,8.4260978,226.9,226.85,2.2023]
[1733969108126,2.06,226.95,226.85,2.2023]
[1733969108426,19.69241324,226.94,226.89,6.58095527]
[1733969108625,8.43371474,226.94,226.89,6.58095527]
[1733969108824,8.43371474,226.93,226.89,6.58095527]
[1733969109046,8.43371474,226.92,226.89,6.58095527]
[1733969109225,2.06,226.95,226.89,6.58095527]
[1733969109633,2.2022,226.88,226.83,2.881]
[1733969109928,2.2022,226.88,226.85,6.58095527]
[1733969110821,2.2022,226.88,226.87,6.58095527]
[1733969112050,2.2022,226.88,226.82,2.2027]
[1733969112051,2.06,226.89,226.85,6.58095527]
[1733969112230,2.06,226.89,226.79,3.6742]
[1733969112530,2.2025,226.84,226.82,6.58095527]
[1733969113433,2.06,226.89,226.82,6.58095527]
[1733969113729,2.06,226.89,226.85,6.58095527]
[1733969114029,2.06,226.89,226.8,2.2028]
[1733969114030,2.2023,226.86,226.8,2.2028]
[1733969114231,2.2023,226.86,226.84,6.58095527]
[1733969117739,2.2022,226.88,226.84,6.58095527]
[1733969117940,2.2022,226.88,226.86,6.58095527]
[1733969118641,2.06,226.89,226.86,6.58095527]
[1733969119039,2.06,226.89,226.88,6.58095527]
[1733969119540,2.202,226.9,226.88,6.58095527]
[1733969119736,4.262,226.9,226.88,6.58095527]
[1733969121437,2.06,226.9,226.88,6.58095527]
[1733969121945,4.2618,226.91,226.88,6.58095527]
[1733969124439,2.06,226.91,226.88,6.58095527]
[1733969124651,2.2019,226.9,226.86,6.58095527]
[1733969125494,2.06,226.91,226.86,6.58095527]
[1733969125655,6.58095527,226.9,226.82,6.58095527]
[1733969125942,6.58095527,226.88,226.82,6.58095527]
[1733969126247,6.58095527,226.86,226.8,6.58095527]
[1733969126445,2.06,226.85,226.8,6.58095527]
[1733969126843,2.2027,226.83,226.8,6.58095527]
[1733969127442,2.2027,226.82,226.8,6.58095527]
[1733969127644,6.58095527,226.84,226.73,2.2035]
[1733969127847,6.58095527,226.84,226.77,6.58095527]
[1733969128043,2.2028,226.81,226.77,6.58095527]
[1733969128648,2.2028,226.81,226.79,6.58095527]
[1733969131456,4.2625,226.85,226.79,6.58095527]
[1733969131749,2.06,226.84,226.82,6.58095527]
[1733969131980,4.2624,226.85,226.82,6.58095527]
[1733969133052,2.06,226.85,226.82,6.58095527]
[1733969133646,6.58095527,226.89,226.82,6.58095527]
[1733969133848,2.06,226.86,226.82,6.58095527]
[1733969134651,2.2024,226.85,226.82,6.58095527]
[1733969135245,6.58095527,226.85,226.72,58.99240396]
[1733969135442,2.06,226.86,226.78,6.58095527]
[1733969135647,6.58095527,226.85,226.78,6.58095527]
[1733969135848,2.2029,226.81,226.78,6.58095527]
[1733969137648,2.06,226.86,226.8,6.58095527]
[1733969139549,2.2025,226.84,226.8,6.58095527]
[1733969139756,2.06,226.86,226.8,6.58095527]
[1733969140557,6.58095527,226.84,226.77,6.58095527]
[1733969141664,2.2028,226.81,226.77,6.58095527]
[1733969141859,4.2628,226.81,226.79,6.58095527]
[1733969143554,2.06,226.81,226.79,6.58095527]
[1733969143877,2.06,226.84,226.79,6.58095527]
[1733969143955,2.06,226.84,226.82,6.58095527]
[1733969146262,4.2625,226.84,226.82,6.58095527]
[1733969148558,2.06,226.84,226.82,6.58095527]
[1733969150662,2.2026,226.83,226.8,6.58095527]
[1733969150859,2.06,226.84,226.8,6.58095527]
[1733969152558,2.06,226.84,226.82,6.58095527]
[1733969152763,2.06,226.87,226.82,6.58095527]
[1733969153364,6.58095527,226.92,226.84,6.58095527]
[1733969153665,2.06,226.91,226.84,6.58095527]
[1733969153967,2.2017,226.93,226.88,6.58095527]
[1733969154165,2.06,226.92,226.88,6.58095527]
[1733969154669,4.2617,226.92,226.88,6.58095527]
[1733969156468,2.2017,226.92,226.88,6.58095527]
[1733969158873,2.2018,226.91,226.88,6.58095527]
[1733969160375,2.2018,226.91,226.78,4.3427]
[1733969160376,2.202,226.89,226.78,4.3427]
[1733969160569,2.202,226.89,226.84,6.58095527]
[1733969161269,2.06,226.88,226.79,2.06]
[1733969161582,2.06,226.88,226.82,6.58095527]
[1733969161783,2.2025,226.85,226.82,6.58095527]
[1733969162678,6.58095527,226.87,226.78,4.3427]
[1733969162982,6.58095527,226.87,226.81,6.58095527]
[1733969163274,2.2025,226.84,226.81,6.58095527]
[1733969164568,2.06,226.83,226.78,2.8872]
[1733969165274,2.2028,226.81,226.78,2.8872]
[1733969165579,2.2028,226.81,226.71,1.3327]
[1733969165580,6.58095527,226.79,226.65,6.58095527]
[1733969165877,6.58095527,226.72,226.65,6.58095527]
[1733969166181,2.06,226.71,226.65,6.58095527]
[1733969166474,6.58095527,226.7,226.61,2.8049]
[1733969166680,2.06,226.71,226.63,6.58095527]
[1733969166876,2.06,226.71,226.65,6.58095527]
[1733969167379,2.06,226.71,226.53,6.13454063]
[1733969167380,6.58095527,226.68,226.52,2.06]
[1733969167716,2.06,226.71,226.59,6.58095527]
[1733969167717,2.2046,226.63,226.59,6.58095527]
[1733969167980,4.2646,226.63,226.57,6.58095527]
[1733969168177,8.64095527,226.63,226.57,6.58095527]
[1733969168376,8.64095527,226.63,226.58,2.2067261]
[1733969169083,2.2047,226.62,226.59,6.58095527]
[1733969169277,2.06,226.64,226.61,6.58095527]
[1733969170422,2.06,226.64,226.59,6.58095527]
[1733969171883,4.2644,226.64,226.59,6.58095527]
[1733969172286,2.06,226.64,226.59,6.58095527]
[1733969173183,2.2044,226.65,226.61,6.58095527]
[1733969173880,2.06,226.66,226.61,6.58095527]
[1733969174203,4.2643,226.66,226.6,6.58095527]
[1733969174420,2.06,226.66,226.6,6.58095527]
[1733969175408,2.06,226.69,226.64,6.58095527]
[1733969176413,2.2038,226.71,226.64,6.58095527]
[1733969176611,4.2638,226.71,226.66,6.58095527]
[1733969176813,2.2038,226.71,226.66,6.58095527]
[1733969177114,4.2638,226.71,226.66,6.58095527]
[1733969177312,2.06,226.71,226.66,6.58095527]
[1733969178616,4.2638,226.71,226.66,6.58095527]
[1733969180909,1.4176,226.8,226.66,6.58095527]
[1733969181106,1.4176,226.8,226.68,6.58095527]
[1733969181107,6.58095527,226.74,226.68,6.58095527]
[1733969181308,8.64095527,226.74,226.68,6.58095527]
[1733969181715,2.06,226.74,226.68,6.58095527]
[1733969182814,2.06,226.74,226.68,8.78495527]
[1733969183518,10.84445527,226.74,226.68,8.78495527]
[1733969183917,4.2635,226.74,226.68,8.78495527]
[1733969184130,2.06,226.75,226.7,6.58095527]
[1733969184325,6.58095527,226.78,226.7,6.58095527]
[1733969184619,2.06,226.77,226.7,6.58095527]
[1733969185666,4.2632,226.77,226.71,2.2037]
[1733969186517,2.2032,226.77,226.71,2.2037]
[1733969186717,6.58095527,226.74,226.63,4.1192]
[1733969186918,6.58095527,226.74,226.67,6.58095527]
[1733969187207,2.2037,226.72,226.67,6.58095527]
[1733969187417,6.58095527,226.74,226.67,6.58095527]
[1733969188708,5.1612566,226.79,226.71,6.58095527]
[1733969188908,6.58095527,226.77,226.71,6.58095527]
[1733969189105,2.06,226.78,226.63,4.1192]
[1733969189106,6.58095527,226.75,226.69,6.58095527]
[1733969189600,6.58095527,226.75,226.7,2.2038]
[1733969189805,6.58095527,226.73,226.66,6.58095527]
[1733969190035,8.64095527,226.73,226.66,6.58095527]
[1733969190208,2.2038,226.71,226.65,2.2042]
[1733969190507,2.2038,226.71,226.65,6.58095527]
[1733969191113,2.2038,226.71,226.66,2.2042]
[1733969192401,5.1612566,226.79,226.69,6.58095527]
[1733969192609,8.66095527,226.78,226.71,6.58095527]
[1733969193308,2.2033,226.76,226.71,6.58095527]
[1733969193508,8.78425527,226.76,226.7,2.2039]
[1733969194110,6.58095527,226.76,226.71,8.78465527]
[1733969195102,6.58095527,226.76,226.71,6.58095527]
[1733969195301,8.78425527,226.76,226.71,6.58095527]
[1733969196307,8.78425527,226.76,226.7,2.2038]
[1733969196809,2.2035,226.74,226.69,6.58095527]
[1733969197307,2.2035,226.74,226.67,8.78505527]
[1733969197308,2.08,226.73,226.67,8.78505527]
[1733969197504,6.58095527,226.72,226.65,6.58095527]
[1733969198100,6.58095527,226.7,226.64,6.58095527]
[1733969198607,2.2042,226.67,226.63,2.7093]
[1733969198804,8.66095527,226.68,226.62,8.78555527]
[1733969199203,2.2042,226.67,226.63,2.2045]
[1733969199400,2.2042,226.67,226.62,6.58095527]
[1733969200207,2.2042,226.67,226.63,2.2045]
[1733969202613,2.08,226.68,226.62,6.58095527]
[1733969202858,2.2043,226.66,226.62,8.78555527]
[1733969203208,8.66095527,226.68,226.52,4.2261]
[1733969203514,6.58095527,226.66,226.59,6.58095527]
[1733969203716,6.58095527,226.64,226.52,4.2261]
[1733969204015,2.08,226.63,226.57,6.58095527]
[1733969204608,4.2845,226.63,226.59,2.2049]
[1733969204813,6.58095527,226.62,226.55,6.58095527]
[1733969205315,2.205,226.59,226.55,8.78625527]
[1733969208317,2.08,226.63,226.57,6.58095527]
[1733969209522,6.58095527,226.62,226.56,2.2051]
[1733969210613,8.78555527,226.62,226.56,2.2051]
[1733969210819,6.58095527,226.62,226.57,2.2051]
[1733969211613,4.2845,226.63,226.57,2.2051]
[1733969211815,5.17828717,226.66,226.59,6.58095527]
[1733969212217,2.08,226.65,226.59,6.58095527]
[1733969212635,4.2844,226.65,226.6,2.2048]
[1733969212822,10.86535527,226.65,226.59,6.58095527]
[1733969214122,10.86535527,226.65,226.59,8.78585527]
[1733969214825,2.08,226.64,226.59,8.78585527]
[1733969215918,2.08,226.64,226.59,2.2049]
[1733969216119,2.08,226.64,226.52,2.7514]
[1733969216120,6.58095527,226.61,226.56,2.2051]
[1733969216517,6.58095527,226.61,226.54,6.58095527]
[1733969217022,2.08,226.65,226.6,6.58095527]
[1733969217324,2.08,226.65,226.58,6.58095527]
[1733969217823,2.2045,226.64,226.56,6.58095527]
[1733969218124,6.58095527,226.63,226.56,6.58095527]
[1733969218824,8.78545527,226.63,226.58,2.205]
[1733969220220,6.58095527,226.63,226.52,2.7514]
[1733969220421,6.58095527,226.61,226.52,2.7514]
[1733969220628,2.06,226.6,226.53,6.58095527]
[1733969220929,2.2051,226.57,226.52,11.53785527]
[1733969222024,6.58095527,226.57,226.52,2.7514]
[1733969222221,6.58095527,226.55,226.51,2.2057]
[1733969222428,2.06,226.54,226.51,2.2057]
[1733969223126,2.06,226.54,226.49,2.2058]
[1733969223723,4.2655,226.54,226.49,2.2058]
[1733969224127,2.2055,226.53,226.49,2.2058]
[1733969224324,6.58095527,226.53,226.46,2.2062]
[1733969224525,5.17828717,226.66,226.51,6.58095527]
[1733969224526,7.23828717,226.66,226.51,6.58095527]
[1733969224960,7.23828717,226.66,226.55,6.58095527]
[1733969224961,6.58095527,226.62,226.55,6.58095527]
[1733969225022,5.17828717,226.66,226.55,6.58095527]
[1733969225225,6.58095527,226.64,226.57,6.58095527]
[1733969226621,2.2046,226.62,226.57,8.78605527]
[1733969228725,8.78555527,226.62,226.57,2.2051]
[1733969229625,2.2049,226.59,226.54,2.2054]
[1733969229822,5.17828717,226.66,226.51,2.7979]
[1733969229823,5.17828717,226.66,226.56,6.58095527]
[1733969230025,5.17828717,226.66,226.58,6.58095527]
[1733969230224,2.204,226.69,226.64,2.2044]
[1733969230426,8.02425527,226.7,226.64,2.2044]
[1733969230727,8.78505527,226.68,226.63,2.2045]
[1733969231068,6.58095527,226.68,226.62,6.58095527]
[1733969231530,6.58095527,226.7,226.62,6.58095527]
[1733969231923,6.58095527,226.68,226.61,6.58095527]
[1733969233129,2.204,226.69,226.59,2.06]
[1733969233636,2.204,226.69,226.63,2.2044]
[1733969233825,2.2042,226.67,226.59,2.06]
[1733969234354,2.2042,226.67,226.61,2.2047]
[1733969234355,4.2642,226.67,226.61,2.2047]
[1733969235134,10.27607,226.71,226.57,10.27607]
[1733969235332,2.204,226.69,226.57,10.27607]
[1733969236035,2.06,226.7,226.6,10.27607]
[1733969236335,2.06,226.75,226.63,10.27607]
[1733969236634,2.2035,226.74,226.64,4.355]
[1733969236932,2.2035,226.74,226.68,2.204]
[1733969237233,2.06,226.75,226.64,2.8994]
[1733969238026,2.2037,226.72,226.67,2.2041]
[1733969239834,2.2037,226.72,226.64,2.8994]
[1733969240034,2.2038,226.71,226.64,5.1038]
[1733969240332,2.06,226.7,226.64,5.1038]
[1733969240885,4.2639,226.7,226.64,5.1038]
[1733969246440,12.33607,226.7,226.57,15.62513439]
[1733969246741,12.33607,226.7,226.58,2.06]
[1733969246942,2.2043,226.66,226.61,2.2046]
[1733969247639,2.2043,226.66,226.62,2.2046]
[1733969251435,12.33607,226.7,226.6,2.2047]
[1733969251436,2.2044,226.64,226.6,2.2047]
[1733969251638,12.33607,226.7,226.56,2.06]
[1733969252740,2.2043,226.66,226.62,2.2046]
[1733969252941,2.2043,226.66,226.56,2.06]